fUSD/lending_fUSD_20260410
["ID","MTS","AMOUNT","RATE_DAILY","PERIOD"]
[420214934,1775791846310,-1000.0,0.00015599,2]
[420214935,1775791846320,-1000.0,0.00015599,2]
[420214936,1775791846329,-1000.0,0.00015599,2]
[420214937,1775791846339,-1000.0,0.00015599,2]
[420214938,1775791846354,-1000.0,0.00015599,2]
[420214939,1775791846363,-1000.0,0.00015599,2]
[420214940,1775791846372,-1000.0,0.00015599,2]
[420214941,1775791846381,-1000.0,0.00015599,2]
[420214942,1775791846397,-1000.0,0.00015599,2]
[420214943,1775791846406,-1000.0,0.00015599,2]
[420214944,1775791846416,-1000.0,0.00015599,2]
[420214945,1775791846426,-1000.0,0.00015599,2]
[420214946,1775791846435,-1000.0,0.00015599,2]
[420214947,1775791846445,-1000.0,0.00015599,2]
[420214948,1775791846455,-1000.0,0.00015599,2]
[420214949,1775791846465,-1000.0,0.00015599,2]
[420214950,1775791846474,-1000.0,0.00015599,2]
[420214951,1775791846485,-1000.0,0.00015599,2]
[420214952,1775791846495,-51232.84375301,0.000156,2]
[420214953,1775791846519,-1135.1653316,0.000156,2]
[420214959,1775791847102,-32857.07213842,0.000156,2]
[420214960,1775791847124,-25819.14026162,0.000156,2]
[420214971,1775792050868,-179.33,0.00011899,2]
[420214972,1775792050910,-321.0,0.00011899,2]
[420214973,1775792152968,-196.0,0.00011899,3]
[420214974,1775792152994,-804.0,0.00011899,3]
[420214975,1775792153326,-1000.0,0.00011899,3]
[420214976,1775792153798,-81.0,0.00011899,3]
[420214977,1775792221807,-1000.0,0.00011899,3]
[420214978,1775792223791,-791.0,0.00011899,3]
[420214979,1775792226394,209.0,0.00012,2]
[420214980,1775792235736,-1000.0,0.00012,2]
[420214981,1775792236321,-492.0,0.00012,2]
[420214982,1775792289894,-1000.0,0.00011899,3]
[420214983,1775792290618,-616.0,0.00011899,3]
[420214984,1775792392913,-1000.0,0.00011899,3]
[420214985,1775792393853,-535.0,0.00011899,3]
[420214986,1775792429815,-1000.0,0.00011899,3]
[420214987,1775792430581,-458.0,0.00011899,3]
[420214988,1775792554531,-1000.0,0.00011899,3]
[420214989,1775792555027,-385.0,0.00011899,3]
[420214990,1775792638562,-1000.0,0.00011899,3]
[420214991,1775792640150,-316.0,0.00011899,3]
[420214992,1775792703723,-1000.0,0.00011899,3]
[420214993,1775792704510,-250.0,0.00011899,3]
[420214994,1775792706437,750.0,0.00011899,3]
[420214995,1775792706468,438.0,0.00011899,3]
[420214996,1775792706507,186.0,0.00011899,3]
[420214997,1775792788220,-1000.0,0.00011899,3]
[420214998,1775792788420,-129.0,0.00011899,3]
[420214999,1775792831506,-1000.0,0.00011899,3]
[420215000,1775792832807,-72.0,0.00011899,3]
[420215001,1775792976154,-1000.0,0.00011899,3]
[420215002,1775792977199,-18.0,0.00011899,3]
[420215003,1775793023210,-968.0,0.00011899,3]
[420215004,1775793023240,-32.0,0.00011899,3]
[420215005,1775793024021,-145.0,0.00011899,3]
[420215009,1775793032219,-250.0,0.00012767,2]
[420215010,1775793032231,-250.0,0.00013,2]
[420215011,1775793032246,-510.0,0.000131,2]
[420215012,1775793032274,-1038.55,0.00013416,2]
[420215013,1775793032291,-225.85,0.00013428,3]
[420215014,1775793032313,-1336.22,0.00013475,2]
[420215015,1775793032328,-177.04751019,0.00013599,2]
[420215016,1775793032343,-500.0,0.00013699,2]
[420215017,1775793032361,-94.54622789,0.00013722,3]
[420215018,1775793032387,-706.82415317,0.00013722,3]
[420215019,1775793032411,-166.62961894,0.00013722,3]
[420215020,1775793032422,-177.0,0.00013722,3]
[420215021,1775793032438,-150.0,0.00014,2]
[420215022,1775793032456,-300.0,0.00014044,2]
[420215023,1775793032470,-1200.0,0.00014059,2]
[420215024,1775793032485,-359.135,0.0001406,2]
[420215025,1775793032506,-6841.87712348,0.0001406,2]
[420215026,1775793032522,-868.52832,0.0001406,2]
[420215027,1775793032539,-343.29292514,0.0001406,2]
[420215028,1775793032556,-9835.566751,0.0001406,2]
[420215029,1775793032571,-1926.19160301,0.0001406,2]
[420215030,1775793032607,-187078.83596916,0.0001406,2]
[420215031,1775793032622,-9915.78788487,0.0001406,2]
[420215032,1775793032643,-21922.42510504,0.0001406,2]
[420215045,1775793037963,-1230.72968212,0.0001406,2]
[420215046,1775793038019,-446.26987052,0.0001406,2]
[420215047,1775793038085,-69147.12643601,0.0001406,2]
[420215057,1775793040113,-693.37340759,0.0001406,2]
[420215058,1775793040145,-1386.70499995,0.0001406,2]
[420215059,1775793040201,-277.1987,0.0001406,2]
[420215060,1775793040925,-632.27587888,0.0001406,2]
[420215061,1775793040936,-2583.16358,0.0001406,2]
[420215063,1775793040990,-3383.3881912,0.0001406,2]
[420215193,1775793042911,-4362.25192,0.0001406,2]
[420215196,1775793042970,-5038.18168835,0.0001406,2]
[420215197,1775793043045,-3818.62396368,0.0001406,2]
[420215198,1775793043055,-5776.50598771,0.0001408,2]
[420215199,1775793043065,-151.0,0.00014152,2]
[420215200,1775793043083,-151.0,0.00014152,2]
[420215201,1775793043097,-151.0,0.00014152,2]
[420215202,1775793043108,-151.0,0.00014152,2]
[420215203,1775793043139,-151.0,0.00014152,2]
[420215204,1775793043155,-540.16434402,0.00014152,2]
[420215205,1775793043188,-730.0,0.00014156,2]
[420215206,1775793043197,-150.0,0.00014159,2]
[420215207,1775793043234,-500.0,0.0001416,2]
[420215208,1775793043247,-200.0,0.0001418,2]
[420215209,1775793043283,-5776.50598767,0.00014282,2]
[420215210,1775793043302,-250.0,0.000143,2]
[420215211,1775793043337,-1124.8,0.00014447,2]
[420215212,1775793043362,-5776.50598767,0.00014484,2]
[420215213,1775793043381,-1120.46082556,0.00014496,2]
[420215214,1775793043407,-14530.64069929,0.00014596,2]
[420215215,1775793043433,-931.86771549,0.00014596,2]
[420215216,1775793043475,-839.48400539,0.00014596,2]
[420215223,1775793045985,-494.5,0.00014596,2]
[420215224,1775793046059,-18203.50757983,0.00014596,2]
[420215225,1775793046075,-896.325,0.00014596,2]
[420215226,1775793046092,-717.48,0.00014606,2]
[420215227,1775793046104,-3240.0,0.00014647,2]
[420215228,1775793046116,-5776.50598767,0.00014687,2]
[420215229,1775793046126,-1120.46082552,0.00014697,2]
[420215230,1775793046143,-244.9043306,0.00014745,2]
[420215231,1775793046156,-5776.50598767,0.00014889,2]
[420215232,1775793046165,-1120.46082552,0.00014897,2]
[420215233,1775793046174,-510.0,0.00014908,3]
[420215234,1775793046191,-300.0,0.00015,2]
[420215235,1775793046202,-165.0,0.0001504,2]
[420215236,1775793046212,-5776.50598767,0.00015091,2]
[420215237,1775793046222,-1120.46082552,0.00015098,2]
[420215238,1775793046241,-1124.8,0.00015169,2]
[420215239,1775793046250,-3344.0851865,0.00015184,2]
[420215240,1775793046260,-175.0721,0.000152,2]
[420215241,1775793046281,-1635.0,0.00015247,2]
[420215242,1775793046291,-5776.50598767,0.00015293,2]
[420215243,1775793046300,-1120.46082552,0.00015298,2]
[420215244,1775793046319,-9999.99,0.0001531,2]
[420215245,1775793046329,-298.11633306,0.0001532,2]
[420215246,1775793046339,-367.04123697,0.0001532,2]
[420215247,1775793046352,-151.57385169,0.00015336,2]
[420215248,1775793046362,-4942.0,0.00015364,2]
[420215251,1775793046372,-1000.0,0.00015372,2]
[420215252,1775793046381,-150.0,0.00015374,2]
[420215254,1775793046392,-951.01773101,0.00015375,2]
[420215257,1775793046404,-150.0,0.00015384,2]
[420215259,1775793046414,-150.0,0.00015403,2]
[420215261,1775793046427,-951.01773095,0.00015433,2]
[420215262,1775793046440,-1071.72873,0.0001544,2]
[420215264,1775793046450,-1071.72874,0.0001544,2]
[420215266,1775793046464,-1071.72873,0.0001545,2]
[420215269,1775793046479,-1000.0,0.00015463,2]
[420215271,1775793046498,-500.0,0.00015475,2]
[420215273,1775793046513,-200.0,0.00015475,2]
[420215275,1775793046531,-150.0,0.00015477,2]
[420215277,1775793046542,-951.01773095,0.00015492,2]
[420215279,1775793046561,-5776.50598767,0.00015496,2]
[420215282,1775793046582,-1120.46082552,0.00015499,2]
[420215284,1775793046600,-5000.0,0.000155,2]
[420215285,1775793046614,-179.49565626,0.000155,2]
[420215286,1775793046637,-1000.0,0.00015507,2]
[420215287,1775793046648,-4942.0,0.00015509,2]
[420215288,1775793046670,-4942.0,0.00015513,2]
[420215289,1775793046696,-150.0,0.00015538,2]
[420215290,1775793046727,-968.0,0.00015545,3]
[420215291,1775793046741,-177.0,0.00015545,3]
[420215292,1775793046760,-951.01773095,0.0001555,2]
[420215293,1775793046783,-179.49565624,0.00015567,2]
[420215294,1775793046793,-628.4336021,0.00015573,2]
[420215295,1775793046833,-500.0,0.00015573,2]
[420215296,1775793046845,-500.0,0.00015573,2]
[420215297,1775793046884,-500.73019012,0.00015573,2]
[420215298,1775793046951,-500.0,0.00015573,2]
[420215299,1775793046983,-500.0,0.00015573,2]
[420215300,1775793047009,-500.83024933,0.00015573,2]
[420215301,1775793047052,-500.0,0.00015573,2]
[420215302,1775793047093,-500.0,0.00015573,2]
[420215303,1775793047120,-500.0,0.00015573,2]
[420215304,1775793047137,-501.31125105,0.00015573,2]
[420215305,1775793047148,-500.0,0.00015573,2]
[420215306,1775793047173,-500.2857164,0.00015573,2]
[420215307,1775793047185,-500.0,0.00015573,2]
[420215308,1775793047200,-500.0,0.00015573,2]
[420215309,1775793047223,-338.03052475,0.00015573,2]
[420215310,1775793047234,-500.0,0.00015573,2]
[420215311,1775793047248,-180.4121268,0.00015573,2]
[420215312,1775793047265,-500.52131189,0.00015573,2]
[420215313,1775793047275,-286.78176154,0.00015573,2]
[420215314,1775793047286,-500.0,0.00015573,2]
[420215315,1775793047299,-500.0,0.00015573,2]
[420215316,1775793047313,-500.0,0.00015573,2]
[420215317,1775793047324,-500.66528704,0.00015573,2]
[420215318,1775793047335,-500.56414726,0.00015573,2]
[420215319,1775793047347,-500.87475927,0.00015573,2]
[420215320,1775793047358,-500.0,0.00015573,2]
[420215321,1775793047368,-500.0,0.00015573,2]
[420215322,1775793047380,-503.27294265,0.00015573,2]
[420215323,1775793047392,-500.0,0.00015573,2]
[420215324,1775793047402,-500.27552448,0.00015573,2]
[420215325,1775793047412,-444.494593,0.00015577,2]
[420215326,1775793047423,-9437.39772449,0.0001559,2]
[420215327,1775793049053,-19856.88782951,0.0001559,2]
[420215328,1775793049064,-150.0,0.0001559,2]
[420215329,1775793049074,-243.17044673,0.0001559,2]
[420215330,1775793049085,-160.566,0.00015598,2]
[420215331,1775793049101,-2010.036,0.00015598,2]
[420215332,1775793049113,-500.0,0.00015598,2]
[420215333,1775793049123,-151.0,0.00015598,2]
[420215334,1775793049133,-151.0,0.00015598,2]
[420215335,1775793049153,-151.0,0.00015598,2]
[420215336,1775793049162,-158.9523,0.00015598,2]
[420215337,1775793049172,-158.9523,0.00015598,2]
[420215338,1775793049183,-158.9523,0.00015598,2]
[420215339,1775793049196,-151.0,0.00015598,2]
[420215340,1775793049207,-396.48268685,0.00015598,2]
[420215341,1775793049217,-398.50319559,0.00015598,2]
[420215342,1775793049231,-158.9523,0.00015598,2]
[420215343,1775793049245,-151.0,0.00015598,2]
[420215344,1775793049254,-151.0,0.00015598,2]
[420215345,1775793049267,-151.0,0.00015598,2]
[420215346,1775793049286,-151.0,0.00015598,2]
[420215347,1775793049296,-151.0,0.00015598,2]
[420215348,1775793049311,-151.0,0.00015598,2]
[420215349,1775793049323,-276.220164,0.00015598,2]
[420215350,1775793049339,-151.0,0.00015598,2]
[420215351,1775793049349,-155.0,0.00015599,2]
[420215352,1775793049365,-213.6,0.00015599,2]
[420215353,1775793049386,-152.124678,0.00015599,2]
[420215354,1775793049408,-151.0,0.00015599,2]
[420215355,1775793049446,-153.379396,0.00015599,2]
[420215356,1775793049467,-151.0,0.00015599,2]
[420215357,1775793049486,-153.055201,0.00015599,2]
[420215358,1775793049500,-157.984687,0.00015599,2]
[420215359,1775793049523,-157.984687,0.00015599,2]
[420215360,1775793049537,-151.0,0.00015599,2]
[420215361,1775793049565,-157.984687,0.00015599,2]
[420215362,1775793049582,-151.0,0.00015599,2]
[420215363,1775793049612,-163.220377,0.00015599,2]
[420215364,1775793049630,-157.984687,0.00015599,2]
[420215365,1775793049663,-151.0,0.00015599,2]
[420215366,1775793049673,-151.000009,0.00015599,2]
[420215367,1775793049687,-151.0,0.00015599,2]
[420215368,1775793049704,-151.0,0.00015599,2]
[420215369,1775793049720,-151.983684,0.00015599,2]
[420215370,1775793049733,-151.0,0.00015599,2]
[420215371,1775793049743,-154.261993,0.00015599,2]
[420215372,1775793049767,-151.0,0.00015599,2]
[420215373,1775793049779,-382.54253,0.00015599,2]
[420215374,1775793049791,-151.0,0.00015599,2]
[420215375,1775793049815,-154.465428,0.00015599,2]
[420215376,1775793049833,-151.0,0.00015599,2]
[420215377,1775793049876,-382.54253,0.00015599,2]
[420215378,1775793049904,-151.0,0.00015599,2]
[420215379,1775793049941,-382.54253,0.00015599,2]
[420215380,1775793049966,-151.0,0.00015599,2]
[420215381,1775793050005,-382.54253,0.00015599,2]
[420215382,1775793050020,-151.0,0.00015599,2]
[420215383,1775793050037,-151.0,0.00015599,2]
[420215384,1775793050057,-151.0,0.00015599,2]
[420215385,1775793050081,-151.0,0.00015599,2]
[420215386,1775793050097,-151.0,0.00015599,2]
[420215387,1775793050106,-151.0,0.00015599,2]
[420215388,1775793050137,-151.0,0.00015599,2]
[420215389,1775793050148,-151.0,0.00015599,2]
[420215390,1775793050170,-151.263265,0.00015599,2]
[420215391,1775793050184,-151.0,0.00015599,2]
[420215392,1775793050195,-151.0,0.00015599,2]
[420215393,1775793050213,-151.0,0.00015599,2]
[420215394,1775793050225,-1249.593502,0.00015599,2]
[420215395,1775793050236,-1249.593502,0.00015599,2]
[420215396,1775793050252,-1249.593502,0.00015599,2]
[420215397,1775793050266,-152.999656,0.00015599,2]
[420215398,1775793050276,-151.0,0.00015599,2]
[420215399,1775793050286,-1249.593502,0.00015599,2]
[420215400,1775793050307,-152.24071,0.00015599,2]
[420215401,1775793050318,-151.0,0.00015599,2]
[420215402,1775793050327,-151.0,0.00015599,2]
[420215403,1775793050341,-151.0,0.00015599,2]
[420215404,1775793050351,-408.58172,0.00015599,2]
[420215405,1775793050361,-1182.35016272,0.00015599,2]
[420215406,1775793050380,-477.81281628,0.00015599,2]
[420215407,1775793050390,-408.58172,0.00015599,2]
[420215408,1775793050402,-1660.162979,0.00015599,2]
[420215409,1775793050411,-408.58172,0.00015599,2]
[420215410,1775793050421,-158.135371,0.00015599,2]
[420215411,1775793050435,-1660.162979,0.00015599,2]
[420215412,1775793050446,-151.0,0.00015599,2]
[420215413,1775793050455,-408.58172,0.00015599,2]
[420215414,1775793050465,-1660.162979,0.00015599,2]
[420215415,1775793050478,-151.0,0.00015599,2]
[420215416,1775793050489,-151.0,0.00015599,2]
[420215417,1775793050500,-153.20843,0.00015599,2]
[420215418,1775793050510,-151.0,0.00015599,2]
[420215419,1775793050521,-151.0,0.00015599,2]
[420215420,1775793050532,-151.0,0.00015599,2]
[420215421,1775793050543,-151.0,0.00015599,2]
[420215422,1775793050553,-153.293968,0.00015599,2]
[420215423,1775793050562,-229.335304,0.00015599,2]
[420215424,1775793050574,-229.335304,0.00015599,2]
[420215425,1775793050587,-229.335304,0.00015599,2]
[420215426,1775793050596,-229.335304,0.00015599,2]
[420215427,1775793050606,-151.0,0.00015599,2]
[420215428,1775793050617,-151.0,0.00015599,2]
[420215429,1775793050630,-151.40444,0.00015599,2]
[420215430,1775793050640,-151.0,0.00015599,2]
[420215431,1775793050649,-151.0,0.00015599,2]
[420215432,1775793050662,-151.0,0.00015599,2]
[420215433,1775793050676,-163.40141,0.00015599,2]
[420215434,1775793050688,-566.921701,0.00015599,2]
[420215435,1775793050698,-1166.991844,0.00015599,2]
[420215436,1775793050709,-566.921701,0.00015599,2]
[420215437,1775793050728,-566.921701,0.00015599,2]
[420215438,1775793050738,-566.921701,0.00015599,2]
[420215439,1775793050750,-1166.991844,0.00015599,2]
[420215440,1775793050770,-1166.991844,0.00015599,2]
[420215441,1775793050779,-1166.991844,0.00015599,2]
[420215442,1775793050794,-500.0,0.00015599,2]
[420215443,1775793050804,-500.0,0.00015599,2]
[420215444,1775793050824,-172.730178,0.00015599,2]
[420215445,1775793050838,-172.730178,0.00015599,2]
[420215446,1775793050848,-172.730178,0.00015599,2]
[420215447,1775793050867,-172.730178,0.00015599,2]
[420215448,1775793050882,-151.0,0.00015599,2]
[420215449,1775793050891,-151.0,0.00015599,2]
[420215450,1775793050913,-151.0,0.00015599,2]
[420215451,1775793050923,-151.0,0.00015599,2]
[420215452,1775793050935,-151.0,0.00015599,2]
[420215453,1775793050961,-151.0,0.00015599,2]
[420215454,1775793050971,-165.708057,0.00015599,2]
[420215455,1775793050991,-347.785849,0.00015599,2]
[420215456,1775793051013,-151.0,0.00015599,2]
[420215457,1775793051023,-347.785849,0.00015599,2]
[420215458,1775793051067,-151.0,0.00015599,2]
[420215459,1775793051108,-151.0,0.00015599,2]
[420215460,1775793051157,-347.785849,0.00015599,2]
[420215461,1775793051176,-151.0,0.00015599,2]
[420215462,1775793051209,-151.0,0.00015599,2]
[420215463,1775793051219,-347.785849,0.00015599,2]
[420215464,1775793051260,-151.0,0.00015599,2]
[420215465,1775793051281,-151.0,0.00015599,2]
[420215466,1775793051302,-151.0,0.00015599,2]
[420215467,1775793051323,-151.0,0.00015599,2]
[420215468,1775793051340,-151.0,0.00015599,2]
[420215469,1775793051351,-151.0,0.00015599,2]
[420215470,1775793051371,-151.0,0.00015599,2]
[420215471,1775793051383,-151.0,0.00015599,2]
[420215472,1775793051393,-151.0,0.00015599,2]
[420215473,1775793051405,-255.429344,0.00015599,2]
[420215474,1775793051420,-255.429344,0.00015599,2]
[420215475,1775793051430,-255.429344,0.00015599,2]
[420215476,1775793051440,-255.429344,0.00015599,2]
[420215477,1775793051455,-151.0,0.00015599,2]
[420215478,1775793051465,-151.0,0.00015599,2]
[420215479,1775793051474,-151.0,0.00015599,2]
[420215480,1775793051484,-255.022204,0.00015599,2]
[420215481,1775793051497,-151.0,0.00015599,2]
[420215482,1775793051507,-151.0,0.00015599,2]
[420215483,1775793051517,-151.0,0.00015599,2]
[420215484,1775793051528,-154.326133,0.00015599,2]
[420215485,1775793051539,-151.0,0.00015599,2]
[420215486,1775793051551,-151.0,0.00015599,2]
[420215487,1775793051563,-151.0,0.00015599,2]
[420215488,1775793051573,-158.686719,0.00015599,2]
[420215489,1775793051591,-151.0,0.00015599,2]
[420215490,1775793051604,-151.0,0.00015599,2]
[420215491,1775793051615,-151.0,0.00015599,2]
[420215492,1775793051631,-151.0,0.00015599,2]
[420215493,1775793051644,-151.0,0.00015599,2]
[420215494,1775793051658,-151.0,0.00015599,2]
[420215495,1775793051671,-151.0,0.00015599,2]
[420215496,1775793051687,-151.0,0.00015599,2]
[420215497,1775793051699,-151.0,0.00015599,2]
[420215498,1775793051712,-151.0,0.00015599,2]
[420215499,1775793051723,-151.0,0.00015599,2]
[420215500,1775793051740,-151.0,0.00015599,2]
[420215501,1775793051749,-151.0,0.00015599,2]
[420215502,1775793051762,-151.0,0.00015599,2]
[420215503,1775793051780,-151.0,0.00015599,2]
[420215504,1775793051790,-151.0,0.00015599,2]
[420215505,1775793051799,-151.0,0.00015599,2]
[420215506,1775793051809,-151.0,0.00015599,2]
[420215507,1775793051818,-151.0,0.00015599,2]
[420215508,1775793051832,-151.0,0.00015599,2]
[420215509,1775793051841,-151.0,0.00015599,2]
[420215510,1775793051852,-285.269813,0.00015599,2]
[420215511,1775793051862,-151.0,0.00015599,2]
[420215512,1775793051876,-151.0,0.00015599,2]
[420215513,1775793051886,-151.0,0.00015599,2]
[420215514,1775793051899,-151.0,0.00015599,2]
[420215515,1775793051909,-151.0,0.00015599,2]
[420215516,1775793051918,-151.0,0.00015599,2]
[420215517,1775793051928,-151.0,0.00015599,2]
[420215518,1775793051945,-253.306082,0.00015599,2]
[420215519,1775793051956,-151.0,0.00015599,2]
[420215520,1775793051966,-153.175601,0.00015599,2]
[420215521,1775793051988,-151.0,0.00015599,2]
[420215522,1775793052001,-151.0,0.00015599,2]
[420215523,1775793052014,-164.018194,0.00015599,2]
[420215524,1775793052057,-199.261318,0.00015599,2]
[420215525,1775793052090,-199.261318,0.00015599,2]
[420215526,1775793052104,-151.0,0.00015599,2]
[420215527,1775793052120,-199.261318,0.00015599,2]
[420215528,1775793052164,-151.0,0.00015599,2]
[420215529,1775793052215,-199.261318,0.00015599,2]
[420215530,1775793052263,-151.0,0.00015599,2]
[420215531,1775793052335,-151.0,0.00015599,2]
[420215532,1775793052355,-151.0,0.00015599,2]
[420215533,1775793052392,-151.0,0.00015599,2]
[420215534,1775793052414,-151.0,0.00015599,2]
[420215535,1775793052438,-151.0,0.00015599,2]
[420215536,1775793052466,-151.0,0.00015599,2]
[420215537,1775793052501,-151.0,0.00015599,2]
[420215538,1775793052519,-151.0,0.00015599,2]
[420215539,1775793052546,-151.0,0.00015599,2]
[420215540,1775793052560,-151.0,0.00015599,2]
[420215541,1775793052580,-151.0,0.00015599,2]
[420215542,1775793052597,-193.657235,0.00015599,2]
[420215543,1775793052616,-156.318226,0.00015599,2]
[420215544,1775793052629,-193.657235,0.00015599,2]
[420215545,1775793052644,-193.657235,0.00015599,2]
[420215546,1775793052660,-151.0,0.00015599,2]
[420215547,1775793052674,-193.657235,0.00015599,2]
[420215548,1775793052688,-226.856857,0.00015599,2]
[420215549,1775793052700,-251.849832,0.00015599,2]
[420215550,1775793052716,-266.34843,0.00015599,2]
[420215551,1775793052727,-266.34843,0.00015599,2]
[420215552,1775793052744,-266.34843,0.00015599,2]
[420215553,1775793052760,-266.34843,0.00015599,2]
[420215554,1775793052770,-170.502459,0.00015599,2]
[420215555,1775793052788,-151.0,0.00015599,2]
[420215556,1775793052805,-151.0,0.00015599,2]
[420215557,1775793052814,-192.376893,0.00015599,2]
[420215558,1775793052829,-151.0,0.00015599,2]
[420215559,1775793052839,-151.0,0.00015599,2]
[420215560,1775793052851,-151.0,0.00015599,2]
[420215561,1775793052861,-151.0,0.00015599,2]
[420215562,1775793052870,-151.0,0.00015599,2]
[420215563,1775793052880,-151.0,0.00015599,2]
[420215564,1775793052889,-151.0,0.00015599,2]
[420215565,1775793052901,-151.0,0.00015599,2]
[420215566,1775793052911,-151.0,0.00015599,2]
[420215567,1775793052920,-151.0,0.00015599,2]
[420215568,1775793052933,-315.380976,0.00015599,2]
[420215569,1775793052943,-151.0,0.00015599,2]
[420215570,1775793053348,-151.0,0.00015599,2]
[420215571,1775793053432,-151.0,0.00015599,2]
[420215572,1775793053543,-315.380976,0.00015599,2]
[420215573,1775793053573,-151.0,0.00015599,2]
[420215574,1775793053597,-315.380976,0.00015599,2]
[420215575,1775793053611,-250.894827,0.00015599,2]
[420215576,1775793053633,-187.459386,0.00015599,2]
[420215577,1775793053651,-315.380976,0.00015599,2]
[420215578,1775793053673,-151.0,0.00015599,2]
[420215579,1775793053690,-250.894827,0.00015599,2]
[420215580,1775793053713,-187.459386,0.00015599,2]
[420215581,1775793053734,-151.0,0.00015599,2]
[420215582,1775793053751,-250.894827,0.00015599,2]
[420215583,1775793053770,-187.459386,0.00015599,2]
[420215584,1775793053793,-151.0,0.00015599,2]
[420215585,1775793053820,-250.894827,0.00015599,2]
[420215586,1775793053835,-151.0,0.00015599,2]
[420215587,1775793053849,-261.822027,0.00015599,2]
[420215588,1775793053890,-187.459386,0.00015599,2]
[420215589,1775793053904,-151.0,0.00015599,2]
[420215590,1775793053914,-151.0,0.00015599,2]
[420215591,1775793053923,-151.0,0.00015599,2]
[420215592,1775793053934,-151.0,0.00015599,2]
[420215593,1775793053946,-151.0,0.00015599,2]
[420215594,1775793053955,-151.0,0.00015599,2]
[420215595,1775793053966,-151.0,0.00015599,2]
[420215596,1775793053979,-233.178178,0.00015599,2]
[420215597,1775793053989,-151.0,0.00015599,2]
[420215598,1775793053998,-151.0,0.00015599,2]
[420215599,1775793054011,-211.66207,0.00015599,2]
[420215600,1775793054025,-1000.0,0.00015599,2]
[420215601,1775793054035,-1000.0,0.00015599,2]
[420215602,1775793054045,-1000.0,0.00015599,2]
[420215603,1775793054058,-1000.0,0.00015599,2]
[420215604,1775793054074,-1000.0,0.00015599,2]
[420215605,1775793054085,-1000.0,0.00015599,2]
[420215606,1775793054121,-1000.0,0.00015599,2]
[420215607,1775793054133,-1000.0,0.00015599,2]
[420215608,1775793054152,-1000.0,0.00015599,2]
[420215609,1775793054164,-151.0,0.00015599,2]
[420215610,1775793054174,-1000.0,0.00015599,2]
[420215611,1775793054189,-1000.0,0.00015599,2]
[420215612,1775793054203,-1000.0,0.00015599,2]
[420215613,1775793054213,-1000.0,0.00015599,2]
[420215614,1775793054229,-151.0,0.00015599,2]
[420215615,1775793054239,-1000.0,0.00015599,2]
[420215616,1775793054248,-1000.0,0.00015599,2]
[420215617,1775793054258,-1000.0,0.00015599,2]
[420215618,1775793054270,-151.0,0.00015599,2]
[420215619,1775793054279,-1000.0,0.00015599,2]
[420215620,1775793054290,-1000.0,0.00015599,2]
[420215621,1775793054301,-847.89467925,0.00015599,2]
[420215622,1775793054314,-151.0,0.00015599,2]
[420215623,1775793054324,-327.577904,0.00015599,2]
[420215624,1775793054334,-327.577904,0.00015599,2]
[420215625,1775793054346,-327.577904,0.00015599,2]
[420215626,1775793054359,-225.0,0.000156,5]
[420215627,1775793054370,-220.0,0.000156,5]
[420215628,1775793054384,-40016.34480247,0.000156,2]
[420215629,1775793054456,-20592.60526196,0.000156,2]